fUSD/lending_fUSD_20250602
["ID","MTS","AMOUNT","RATE_DAILY","PERIOD"]
[363698253,1748822585946,150.0,0.00018962,2]
[363698254,1748822585978,150.0,0.00018983,2]
[363698255,1748822586261,150.0,0.00018561,2]
[363698257,1748822719513,541.71,0.00018618,2]
[363698259,1748822799117,605.13,0.00016815,2]
[363698261,1748822950297,1000.0,0.00018616,2]
[363698262,1748822992370,166.67,0.00018616,2]
[363698273,1748823031978,-605.13,0.00019079,2]
[363698274,1748823031988,-300.0,0.00019165,2]
[363698275,1748823031999,-282.91007198,0.00019165,2]
[363698276,1748823032015,-917.08992802,0.00019165,2]
[363698277,1748823032025,-82.91007198,0.00019166,2]
[363698278,1748823032048,-68.08992802,0.00019166,2]
[363698279,1748823032058,-151.0,0.00019166,2]
[363698280,1748823032068,-156.78951745,0.00019166,2]
[363698281,1748823032078,-80.5366707,0.00019166,2]
[363698282,1748823032094,-70.4633293,0.00019166,2]
[363698283,1748823032104,-151.0,0.00019166,2]
[363698284,1748823032114,-668.65185757,0.00019166,2]
[363698285,1748823032124,-207.4,0.00019166,2]
[363698286,1748823032134,-420.0,0.00019178,2]
[363698287,1748823032143,-420.0,0.00019178,2]
[363698288,1748823032153,-420.0,0.00019178,2]
[363698289,1748823032163,-420.0,0.00019178,2]
[363698290,1748823032173,-420.0,0.00019178,2]
[363698291,1748823032183,-420.0,0.00019178,2]
[363698292,1748823032193,-420.0,0.00019178,2]
[363698293,1748823032202,-420.0,0.00019178,2]
[363698294,1748823032212,-202.60067051,0.00019178,2]
[363698295,1748823032227,-217.39932949,0.00019178,2]
[363698296,1748823032236,-289.76867051,0.00019178,2]
[363698839,1748823037713,-130.23132951,0.00019178,2]
[363698841,1748823037724,-420.0,0.00019178,2]
[363698843,1748823037733,-420.0,0.00019178,2]
[363698845,1748823037742,-86.36867049,0.00019178,2]
[363698848,1748823037758,-333.63132951,0.00019178,2]
[363698850,1748823037767,-420.0,0.00019178,2]
[363698852,1748823037776,-71.6354712,0.00019178,2]
[363698854,1748823037787,-348.3645288,0.00019178,2]
[363698856,1748823037797,-228.58695113,0.00019178,2]
[363698858,1748823037808,-1012.22304887,0.00019178,2]
[363698860,1748823037817,-24.67695113,0.00019178,2]
[363698881,1748823038020,-451.18304887,0.00019178,2]
[363698883,1748823038030,-182.83695113,0.00019178,2]
[363699015,1748823040061,-237.16304887,0.00019178,2]
[363699017,1748823040071,-420.0,0.00019178,2]
[363699019,1748823040080,-452.73,0.00019178,2]
[363699021,1748823040092,-776.84,0.00019178,2]
[363699023,1748823040105,-420.0,0.00019178,2]
[363699025,1748823040115,-420.0,0.00019178,2]
[363699027,1748823040124,-2874.82,0.00019178,2]
[363699029,1748823040135,-546.7,0.00019178,2]
[363699031,1748823040144,-420.0,0.00019178,2]
[363699033,1748823040155,-420.0,0.00019178,2]
[363699035,1748823040165,-420.0,0.00019178,2]
[363699037,1748823040175,-420.0,0.00019178,2]
[363699039,1748823040185,-420.0,0.00019178,2]
[363699041,1748823040195,-431.72,0.00019178,2]
[363699043,1748823040205,-420.0,0.00019178,2]
[363699045,1748823040215,-420.0,0.00019178,2]
[363699047,1748823040225,-420.0,0.00019178,2]
[363699049,1748823040235,-420.0,0.00019178,2]
[363699051,1748823040244,-420.0,0.00019178,2]
[363699053,1748823040254,-420.0,0.00019178,2]
[363699055,1748823040263,-420.0,0.00019178,2]
[363699057,1748823040273,-420.0,0.00019178,2]
[363699059,1748823040282,-420.0,0.00019178,2]
[363699061,1748823040292,-420.0,0.00019178,2]
[363699063,1748823040302,-441.44,0.00019178,2]
[363699065,1748823040311,-488.98,0.00019178,2]
[363699066,1748823040321,-420.0,0.00019178,2]
[363699069,1748823040330,-420.0,0.00019178,2]
[363699070,1748823040342,-420.0,0.00019178,2]
[363699072,1748823040351,-1270.9,0.00019178,2]
[363699074,1748823040360,-420.0,0.00019178,2]
[363699076,1748823040369,-420.0,0.00019178,2]
[363699078,1748823040379,-420.0,0.00019178,2]
[363699080,1748823040388,-2521.6,0.00019178,2]
[363699082,1748823040398,-420.0,0.00019178,2]
[363699084,1748823040408,-420.0,0.00019178,2]
[363699086,1748823040418,-420.0,0.00019178,2]
[363699088,1748823040427,-420.0,0.00019178,2]
[363699090,1748823040437,-420.0,0.00019178,2]
[363699092,1748823040447,-420.0,0.00019178,2]
[363699094,1748823040456,-420.0,0.00019178,2]
[363699096,1748823040466,-420.0,0.00019178,2]
[363699098,1748823040476,-420.0,0.00019178,2]
[363699100,1748823040486,-420.0,0.00019178,2]
[363699102,1748823040495,-420.0,0.00019178,2]
[363699104,1748823040504,-420.0,0.00019178,2]
[363699106,1748823040514,-420.0,0.00019178,2]
[363699108,1748823040523,-420.0,0.00019178,2]
[363699110,1748823040533,-420.0,0.00019178,2]
[363699112,1748823040541,-7973.76,0.00019178,2]
[363699113,1748823040551,-420.0,0.00019178,2]
[363699116,1748823040565,-420.0,0.00019178,2]
[363699118,1748823040575,-420.0,0.00019178,2]
[363699120,1748823040584,-420.0,0.00019178,2]
[363699122,1748823040597,-420.0,0.00019178,2]
[363699123,1748823040606,-420.0,0.00019178,2]
[363699125,1748823040615,-424.42,0.00019178,2]
[363699127,1748823040625,-420.0,0.00019178,2]
[363699129,1748823040634,-1064.24,0.00019178,2]
[363699131,1748823040644,-896.21,0.00019178,2]
[363699134,1748823040654,-420.0,0.00019178,2]
[363699136,1748823040664,-420.0,0.00019178,2]
[363699138,1748823040673,-575.98,0.00019178,2]
[363699139,1748823040683,-691.48,0.00019178,2]
[363699141,1748823040693,-420.0,0.00019178,2]
[363699143,1748823040702,-1098.03,0.00019178,2]
[363699146,1748823040712,-420.0,0.00019178,2]
[363699148,1748823040722,-420.0,0.00019178,2]
[363699150,1748823040732,-420.0,0.00019178,2]
[363699152,1748823040742,-420.0,0.00019178,2]
[363699153,1748823040752,-912.19,0.00019178,2]
[363699155,1748823040761,-420.0,0.00019178,2]
[363699157,1748823040770,-420.0,0.00019178,2]
[363699159,1748823040779,-420.0,0.00019178,2]
[363699161,1748823040789,-420.0,0.00019178,2]
[363699163,1748823040798,-420.0,0.00019178,2]
[363699165,1748823040807,-491.12,0.00019178,2]
[363699167,1748823040816,-764.41,0.00019178,2]
[363699169,1748823040825,-847.69,0.00019178,2]
[363699171,1748823040835,-151.0,0.00019178,2]
[363699173,1748823040846,-300.0,0.000193,7]
[363699175,1748823040855,-150.0,0.00019305,2]
[363699177,1748823040865,-244.91771972,0.00019315,2]
[363699179,1748823040874,-420.0,0.00019315,2]
[363699181,1748823040883,-420.0,0.00019315,2]
[363699183,1748823040892,-420.0,0.00019315,2]
[363699185,1748823040901,-420.0,0.00019315,2]
[363699187,1748823040911,-1240.81,0.00019315,2]
[363699189,1748823040920,-475.86,0.00019315,2]
[363699191,1748823040929,-420.0,0.00019315,2]
[363699193,1748823040939,-452.73,0.00019315,2]
[363699195,1748823040948,-776.84,0.00019315,2]
[363699197,1748823040958,-420.0,0.00019315,2]
[363699199,1748823040967,-2874.82,0.00019315,2]
[363699201,1748823040977,-546.7,0.00019315,2]
[363699203,1748823040987,-420.0,0.00019315,2]
[363699205,1748823040997,-420.0,0.00019315,2]
[363699207,1748823041007,-420.0,0.00019315,2]
[363699209,1748823041016,-420.0,0.00019315,2]
[363699211,1748823041026,-431.72,0.00019315,2]
[363699213,1748823041035,-420.0,0.00019315,2]
[363699215,1748823041044,-420.0,0.00019315,2]
[363699217,1748823041054,-420.0,0.00019315,2]
[363699219,1748823041064,-420.0,0.00019315,2]
[363699221,1748823041073,-420.0,0.00019315,2]
[363699223,1748823041082,-420.0,0.00019315,2]
[363699225,1748823041094,-420.0,0.00019315,2]
[363699227,1748823041107,-441.44,0.00019315,2]
[363699229,1748823041116,-488.98,0.00019315,2]
[363699231,1748823041126,-420.0,0.00019315,2]
[363699233,1748823041135,-420.0,0.00019315,2]
[363699235,1748823041145,-1270.9,0.00019315,2]
[363699237,1748823041155,-420.0,0.00019315,2]
[363699239,1748823041164,-420.0,0.00019315,2]
[363699241,1748823041173,-2521.6,0.00019315,2]
[363699243,1748823041184,-433.96,0.00019315,2]
[363699245,1748823041195,-420.0,0.00019315,2]
[363699247,1748823041205,-420.0,0.00019315,2]
[363699249,1748823041214,-420.0,0.00019315,2]
[363699251,1748823041223,-420.0,0.00019315,2]
[363699253,1748823041233,-420.0,0.00019315,2]
[363699255,1748823041242,-420.0,0.00019315,2]
[363699257,1748823041251,-490.45748741,0.00019315,2]
[363699259,1748823041261,-420.0,0.00019315,2]
[363699261,1748823041270,-420.0,0.00019315,2]
[363699263,1748823041280,-420.0,0.00019315,2]
[363699265,1748823041289,-7973.76,0.00019315,2]
[363699267,1748823041298,-420.0,0.00019315,2]
[363699268,1748823041308,-420.0,0.00019315,2]
[363699270,1748823041317,-420.0,0.00019315,2]
[363699273,1748823041327,-420.0,0.00019315,2]
[363699274,1748823041336,-420.0,0.00019315,2]
[363699277,1748823041348,-424.42,0.00019315,2]
[363699279,1748823041358,-389.54916285,0.00019315,2]
[363699281,1748823041368,-1064.24,0.00019315,2]
[363699283,1748823041378,-896.21,0.00019315,2]
[363699285,1748823041387,-420.0,0.00019315,2]
[363699287,1748823041398,-420.0,0.00019315,2]
[363699289,1748823041412,-575.98,0.00019315,2]
[363699291,1748823041421,-691.48,0.00019315,2]
[363699293,1748823041430,-1098.03,0.00019315,2]
[363699295,1748823041440,-420.0,0.00019315,2]
[363699297,1748823041449,-420.0,0.00019315,2]
[363699299,1748823041459,-420.0,0.00019315,2]
[363699301,1748823041468,-912.19,0.00019315,2]
[363699303,1748823041477,-420.0,0.00019315,2]
[363699304,1748823041486,-420.0,0.00019315,2]
[363699307,1748823041496,-420.0,0.00019315,2]
[363699308,1748823041506,-420.0,0.00019315,2]
[363699310,1748823041515,-764.41,0.00019315,2]
[363699313,1748823041525,-491.12,0.00019315,2]
[363699314,1748823041535,-847.69,0.00019315,2]
[363699316,1748823041544,-152.0,0.00019335,3]
[363699318,1748823041554,-172.67,0.00019364,2]
[363699320,1748823041564,-600.0,0.000194,7]
[363699322,1748823041574,-420.0,0.00019452,2]
[363699324,1748823041583,-420.0,0.00019452,2]
[363699326,1748823041593,-420.0,0.00019452,2]
[363699328,1748823041605,-1240.81,0.00019452,2]
[363699330,1748823041614,-475.86,0.00019452,2]
[363699332,1748823041624,-420.0,0.00019452,2]
[363699334,1748823041633,-452.73,0.00019452,2]
[363699336,1748823041643,-776.84,0.00019452,2]
[363699338,1748823041652,-420.0,0.00019452,2]
[363699340,1748823041662,-2874.82,0.00019452,2]
[363699342,1748823041672,-546.7,0.00019452,2]
[363699344,1748823041681,-420.0,0.00019452,2]
[363699346,1748823041691,-501.51489799,0.00019452,2]
[363699348,1748823041700,-420.0,0.00019452,2]
[363699350,1748823041710,-431.72,0.00019452,2]
[363699352,1748823041719,-420.0,0.00019452,2]
[363699354,1748823041728,-420.0,0.00019452,2]
[363699356,1748823041737,-420.0,0.00019452,2]
[363699358,1748823041747,-420.0,0.00019452,2]
[363699360,1748823041756,-420.0,0.00019452,2]
[363699362,1748823041766,-441.44,0.00019452,2]
[363699364,1748823041775,-488.98,0.00019452,2]
[363699366,1748823041785,-478.78977338,0.00019452,2]
[363699368,1748823041793,-420.0,0.00019452,2]
[363699370,1748823041803,-1270.9,0.00019452,2]
[363699371,1748823041812,-420.0,0.00019452,2]
[363699373,1748823041821,-420.0,0.00019452,2]
[363699375,1748823041831,-2521.6,0.00019452,2]
[363699377,1748823041842,-420.0,0.00019452,2]
[363699379,1748823041852,-420.0,0.00019452,2]
[363699381,1748823041861,-420.0,0.00019452,2]
[363699383,1748823041870,-420.0,0.00019452,2]
[363699385,1748823041880,-420.0,0.00019452,2]
[363699387,1748823041889,-420.0,0.00019452,2]
[363699389,1748823041898,-420.0,0.00019452,2]
[363699391,1748823041907,-7973.76,0.00019452,2]
[363699393,1748823041917,-420.0,0.00019452,2]
[363699395,1748823041926,-420.0,0.00019452,2]
[363699397,1748823041936,-420.0,0.00019452,2]
[363699399,1748823041945,-424.42,0.00019452,2]
[363699401,1748823041955,-1064.24,0.00019452,2]
[363699403,1748823041964,-896.21,0.00019452,2]
[363699405,1748823041974,-420.0,0.00019452,2]
[363699407,1748823041984,-420.0,0.00019452,2]
[363699409,1748823041994,-575.98,0.00019452,2]
[363699411,1748823042003,-691.48,0.00019452,2]
[363699413,1748823042012,-1098.03,0.00019452,2]
[363699415,1748823042021,-420.0,0.00019452,2]
[363699417,1748823042031,-420.0,0.00019452,2]
[363699419,1748823042040,-420.0,0.00019452,2]
[363699421,1748823042050,-912.19,0.00019452,2]
[363699423,1748823042059,-420.0,0.00019452,2]
[363699425,1748823042069,-420.0,0.00019452,2]
[363699427,1748823042078,-420.0,0.00019452,2]
[363699429,1748823042087,-420.0,0.00019452,2]
[363699431,1748823042102,-764.41,0.00019452,2]
[363699433,1748823042112,-491.12,0.00019452,2]
[363699435,1748823042121,-847.69,0.00019452,2]
[363699437,1748823042131,-5261.12789175,0.00019489,2]
[363699439,1748823042140,-900.0,0.000195,7]
[363699441,1748823042151,-5261.12789167,0.00019535,2]
[363699443,1748823042160,-500.0,0.00019562,2]
[363699445,1748823042170,-5261.12789167,0.0001958,2]
[363699447,1748823042181,-420.0,0.00019589,2]
[363699449,1748823042190,-420.0,0.00019589,2]
[363699451,1748823042199,-420.0,0.00019589,2]
[363699453,1748823042209,-1240.81,0.00019589,2]
[363699455,1748823042218,-475.86,0.00019589,2]
[363699457,1748823042227,-420.0,0.00019589,2]
[363699459,1748823042237,-452.73,0.00019589,2]
[363699461,1748823042247,-776.84,0.00019589,2]
[363699463,1748823042256,-420.0,0.00019589,2]
[363699465,1748823042267,-2874.82,0.00019589,2]
[363699467,1748823042276,-546.7,0.00019589,2]
[363699469,1748823042286,-420.0,0.00019589,2]
[363699471,1748823042295,-350.29988711,0.00019589,2]
[363699473,1748823042304,-431.72,0.00019589,2]
[363699475,1748823042314,-420.0,0.00019589,2]
[363699477,1748823042323,-420.0,0.00019589,2]
[363699479,1748823042334,-420.0,0.00019589,2]
[363699481,1748823042345,-420.0,0.00019589,2]
[363699483,1748823042355,-420.0,0.00019589,2]
[363699485,1748823042364,-441.44,0.00019589,2]
[363699487,1748823042374,-488.98,0.00019589,2]
[363699489,1748823042384,-420.0,0.00019589,2]
[363699491,1748823042394,-1270.9,0.00019589,2]
[363699493,1748823042404,-420.0,0.00019589,2]
[363699495,1748823042413,-420.0,0.00019589,2]
[363699497,1748823042423,-2521.6,0.00019589,2]
[363699499,1748823042432,-500.0,0.00019589,2]
[363699501,1748823042442,-420.0,0.00019589,2]
[363699503,1748823042451,-420.0,0.00019589,2]
[363699505,1748823042461,-202.04718634,0.00019589,2]
[363699507,1748823042470,-420.0,0.00019589,2]
[363699509,1748823042480,-420.0,0.00019589,2]
[363699511,1748823042490,-420.0,0.00019589,2]
[363699513,1748823042501,-420.0,0.00019589,2]
[363699515,1748823042511,-7973.76,0.00019589,2]
[363699517,1748823042521,-420.0,0.00019589,2]
[363699519,1748823042530,-420.0,0.00019589,2]
[363699521,1748823042540,-420.0,0.00019589,2]
[363699523,1748823042550,-424.42,0.00019589,2]
[363699525,1748823042559,-1064.24,0.00019589,2]
[363699527,1748823042568,-896.21,0.00019589,2]
[363699528,1748823042577,-420.0,0.00019589,2]
[363699530,1748823042587,-420.0,0.00019589,2]
[363699533,1748823042598,-575.98,0.00019589,2]
[363699534,1748823042608,-691.48,0.00019589,2]
[363699537,1748823042617,-1098.03,0.00019589,2]
[363699539,1748823042627,-420.0,0.00019589,2]
[363699541,1748823042637,-420.0,0.00019589,2]
[363699542,1748823042647,-420.0,0.00019589,2]
[363699545,1748823042656,-912.19,0.00019589,2]
[363699547,1748823042666,-420.0,0.00019589,2]
[363699548,1748823042676,-420.0,0.00019589,2]
[363699551,1748823042686,-420.0,0.00019589,2]
[363699552,1748823042695,-420.0,0.00019589,2]
[363699553,1748823042704,-764.41,0.00019589,2]
[363699554,1748823042713,-491.12,0.00019589,2]
[363699555,1748823042722,-847.69,0.00019589,2]
[363699557,1748823042731,-1398.799765,0.00019599,2]
[363699559,1748823042740,-1045.55841521,0.000196,2]
[363699561,1748823042749,-1118.30996936,0.000196,2]
[363699562,1748823042758,-1145.87128228,0.000196,2]
[363699564,1748823042768,-1077.616666,0.000196,2]
[363699565,1748823042777,-1069.10088671,0.000196,2]
[363699566,1748823042786,-1005.14482447,0.000196,2]
[363699567,1748823042796,-1019.93412455,0.000196,2]
[363699569,1748823042805,-1037.78328446,0.000196,2]
[363699571,1748823042815,-1053.08135787,0.000196,2]
[363699574,1748823042824,-1089.16001944,0.000196,2]
[363699576,1748823042834,-965.83708782,0.000196,2]
[363699579,1748823042844,-1200.0,0.000196,7]
[363699582,1748823042854,-500.0,0.00019616,2]
[363699585,1748823042863,-5261.12789167,0.00019626,2]
[363699588,1748823042872,-500.0,0.00019644,2]
[363699591,1748823042882,-150.0,0.00019664,2]
[363699594,1748823042891,-500.0,0.00019671,2]
[363699597,1748823042901,-5261.12789167,0.00019672,2]
[363699599,1748823042911,-150.0,0.00019693,2]
[363699602,1748823042920,-150.0,0.00019696,2]
[363699604,1748823042930,-500.0,0.00019699,2]
[363699606,1748823042939,-1000.0,0.000197,2]
[363699608,1748823042948,-1500.0,0.000197,7]
[363699610,1748823042957,-29971.84161592,0.000197,2]
[363699612,1748823042967,-164.98621947,0.00019711,2]
[363699614,1748823042976,-151.0,0.00019714,2]
[363699616,1748823042985,-5261.12789167,0.00019717,2]
[363699618,1748823042995,-500.0,0.00019726,2]
[363699620,1748823043004,-316.66718933,0.00019726,2]
[363699622,1748823043013,-457.5,0.00019726,2]
[363699624,1748823043023,-420.0,0.00019726,2]
[363699625,1748823043032,-1240.81,0.00019726,2]
[363699626,1748823043042,-475.86,0.00019726,2]
[363699627,1748823043051,-420.0,0.00019726,2]
[363699628,1748823043060,-452.73,0.00019726,2]
[363699629,1748823043071,-776.84,0.00019726,2]
[363699630,1748823043080,-420.0,0.00019726,2]
[363699631,1748823043091,-2874.82,0.00019726,2]
[363699632,1748823043103,-546.7,0.00019726,2]
[363699634,1748823043114,-420.0,0.00019726,2]
[363699636,1748823043123,-431.72,0.00019726,2]
[363699638,1748823043132,-150.33487693,0.00019726,2]
[363699640,1748823043143,-420.0,0.00019726,2]
[363699642,1748823043152,-420.0,0.00019726,2]
[363699644,1748823043162,-501.94324822,0.00019726,2]
[363699646,1748823043174,-420.0,0.00019726,2]
[363699648,1748823043184,-441.44,0.00019726,2]
[363699650,1748823043194,-488.98,0.00019726,2]
[363699652,1748823043204,-420.0,0.00019726,2]
[363699654,1748823043214,-1270.9,0.00019726,2]
[363699656,1748823043223,-420.0,0.00019726,2]
[363699657,1748823043233,-420.0,0.00019726,2]
[363699658,1748823043243,-2521.6,0.00019726,2]
[363699659,1748823043253,-420.0,0.00019726,2]
[363699660,1748823043262,-420.0,0.00019726,2]
[363699661,1748823043273,-420.0,0.00019726,2]
[363699662,1748823043282,-420.0,0.00019726,2]
[363699663,1748823043292,-420.0,0.00019726,2]
[363699664,1748823043303,-420.0,0.00019726,2]
[363699665,1748823043313,-7973.76,0.00019726,2]
[363699666,1748823043323,-420.0,0.00019726,2]
[363699667,1748823043332,-420.0,0.00019726,2]
[363699668,1748823043344,-217.95679738,0.00019726,2]
[363699669,1748823043354,-424.42,0.00019726,2]
[363699670,1748823043364,-1064.24,0.00019726,2]
[363699671,1748823043374,-896.21,0.00019726,2]
[363699672,1748823043383,-420.0,0.00019726,2]
[363699673,1748823043394,-420.0,0.00019726,2]
[363699674,1748823043404,-575.98,0.00019726,2]
[363699675,1748823043413,-691.48,0.00019726,2]
[363699676,1748823043423,-1098.03,0.00019726,2]
[363699677,1748823043433,-420.0,0.00019726,2]
[363699678,1748823043443,-420.0,0.00019726,2]
[363699679,1748823043453,-420.0,0.00019726,2]
[363699680,1748823043463,-912.19,0.00019726,2]
[363699681,1748823043472,-420.0,0.00019726,2]
[363699682,1748823043482,-420.0,0.00019726,2]
[363699683,1748823043491,-420.0,0.00019726,2]
[363699684,1748823043501,-420.0,0.00019726,2]
[363699685,1748823043511,-764.41,0.00019726,2]
[363699686,1748823043520,-491.12,0.00019726,2]
[363699687,1748823043530,-847.69,0.00019726,2]
[363699688,1748823043540,-305.73677696,0.00019726,2]
[363699689,1748823043550,-1035.31271801,0.00019742,2]
[363699690,1748823043560,-201.14009166,0.00019753,2]
[363699691,1748823043569,-5261.12789167,0.00019763,2]
[363699692,1748823043579,-5000.0,0.00019763,2]
[363699693,1748823043589,-31396.0,0.0001977,2]
[363699694,1748823043600,-5456.98526054,0.00019783,2]
[363699695,1748823043609,-5456.98526045,0.00019796,2]
[363699696,1748823043619,-1000.0,0.000198,2]
[363699697,1748823043629,-300.0,0.000198,7]
[363699698,1748823043639,-500.0,0.00019808,2]
[363699699,1748823043649,-493.12092147,0.00019808,2]
[363699700,1748823043658,-500.0,0.00019808,2]
[363699701,1748823043667,-562.05145172,0.00019808,2]
[363699702,1748823043677,-500.0,0.00019808,2]
[363699703,1748823043686,-500.0,0.00019808,2]
[363699704,1748823043697,-500.0,0.00019808,2]
[363699705,1748823043707,-500.0,0.00019808,2]
[363699706,1748823043716,-500.0,0.00019808,2]
[363699707,1748823043726,-345.14737477,0.00019808,2]
[363699708,1748823043737,-465.29303377,0.00019808,2]
[363699709,1748823043748,-5261.12789167,0.00019809,2]
[363699710,1748823043759,-5456.98526045,0.00019809,2]
[363699711,1748823043768,-5456.98526045,0.00019822,2]
[363699712,1748823043778,-5456.98526045,0.00019835,2]
[363699713,1748823043788,-5456.98526045,0.00019848,2]
[363699714,1748823043798,-5261.12789167,0.00019854,2]
[363699715,1748823043808,-5456.98526045,0.00019861,2]
[363699716,1748823043818,-420.0,0.00019863,2]
[363699717,1748823043828,-1240.81,0.00019863,2]
[363699718,1748823044023,-475.86,0.00019863,2]
[363699719,1748823044036,-420.0,0.00019863,2]
[363699720,1748823044045,-452.73,0.00019863,2]
[363699721,1748823044056,-776.84,0.00019863,2]
[363699722,1748823044066,-420.0,0.00019863,2]
[363699723,1748823044076,-2874.82,0.00019863,2]
[363699724,1748823044085,-546.7,0.00019863,2]
[363699725,1748823044096,-420.0,0.00019863,2]
[363699726,1748823044109,-431.72,0.00019863,2]
[363699727,1748823044118,-420.0,0.00019863,2]
[363699728,1748823044128,-420.0,0.00019863,2]
[363699729,1748823044139,-420.0,0.00019863,2]
[363699730,1748823044149,-441.44,0.00019863,2]
[363699731,1748823044159,-488.98,0.00019863,2]
[363699732,1748823044168,-420.0,0.00019863,2]
[363699733,1748823044179,-1270.9,0.00019863,2]
[363699734,1748823044190,-420.0,0.00019863,2]
[363699735,1748823044200,-420.0,0.00019863,2]
[363699736,1748823044210,-2521.6,0.00019863,2]
[363699737,1748823044220,-420.0,0.00019863,2]
[363699738,1748823044230,-420.0,0.00019863,2]
[363699739,1748823044239,-420.0,0.00019863,2]
[363699740,1748823044249,-420.0,0.00019863,2]
[363699741,1748823044259,-420.0,0.00019863,2]
[363699742,1748823044269,-420.0,0.00019863,2]
[363699743,1748823044279,-7973.76,0.00019863,2]
[363699744,1748823044288,-420.0,0.00019863,2]
[363699745,1748823044298,-420.0,0.00019863,2]
[363699746,1748823044308,-424.42,0.00019863,2]
[363699747,1748823044319,-1064.24,0.00019863,2]
[363699748,1748823044328,-896.21,0.00019863,2]
[363699749,1748823044338,-420.0,0.00019863,2]
[363699750,1748823044350,-420.0,0.00019863,2]
[363699751,1748823044360,-575.98,0.00019863,2]
[363699752,1748823044370,-691.48,0.00019863,2]
[363699753,1748823044379,-1098.03,0.00019863,2]
[363699754,1748823044389,-420.0,0.00019863,2]
[363699755,1748823044400,-420.0,0.00019863,2]
[363699756,1748823044410,-420.0,0.00019863,2]
[363699757,1748823044420,-912.19,0.00019863,2]
[363699758,1748823044431,-420.0,0.00019863,2]
[363699759,1748823044441,-420.0,0.00019863,2]
[363699760,1748823044450,-420.0,0.00019863,2]
[363699761,1748823044460,-420.0,0.00019863,2]
[363699762,1748823044470,-764.41,0.00019863,2]
[363699763,1748823044480,-491.12,0.00019863,2]
[363699764,1748823044489,-847.69,0.00019863,2]
[363699765,1748823044499,-5456.98526045,0.00019874,2]
[363699766,1748823044508,-307.082,0.00019883,2]
[363699767,1748823044518,-7370.065,0.00019883,2]
[363699768,1748823044528,-5456.98526045,0.00019887,2]
[363699769,1748823044538,-1156.0,0.00019898,2]
[363699770,1748823044548,-4206.81,0.00019898,2]
[363699771,1748823044558,-287.188,0.00019898,2]
[363699772,1748823044570,-848.0,0.00019898,2]
[363699773,1748823044579,-7008.0,0.00019898,2]
[363699774,1748823044588,-885.398,0.00019898,2]
[363699775,1748823044599,-500.0,0.00019899,2]
[363699776,1748823044609,-500.0,0.00019899,2]
[363699777,1748823044619,-5711.01654683,0.000199,2]
[363699778,1748823044628,-714.69787422,0.000199,2]
[363699779,1748823044638,-1000.0,0.000199,2]
[363699780,1748823044648,-300.0,0.000199,7]
[363699781,1748823044658,-5456.98526045,0.000199,2]
[363699782,1748823044667,-210.67875062,0.000199,3]
[363699783,1748823044677,-222.499358,0.000199,2]
[363699784,1748823044687,-1752.12810058,0.000199,2]
[363699785,1748823044697,-5261.12789167,0.000199,2]